{"text_format":"1","workbook":"xlsx","n_sheets":2,"sheets":["Lijst","Formulier"],"not_rendered":{"charts":0,"images":1,"macros":1,"external_links":0,"defined_names":1,"comments":0,"pivot_tables":0},"unopened":[],"bounds":{"document_bytes":16777216,"sheet_cells":100000,"rows_first":2000,"rows_last":500,"rows_between":2000,"halvings":0,"cell_chars":16384,"cell_head_chars":4096},"cells_cut":0,"cells_raw":0,"read":"whole","date_system":"1900"}

{"sheet":"Lijst","index":0,"n_rows":50,"n_cols":9,"rows_kept":50,"cut":false,"hidden":false,"merged":[[3,1,3,2],[0,0,0,4],[1,0,1,4]]}
["Maak uw keuze uit de gereedschappen hieronder en vul het nr van de linkerkolom in het formulier"]
["Daarna stuur je het volledige bestand als bijlage naar tab@bocc-citroen.be "]
[]
["Nr","Omschrijving",null,"Huur","Waarborg",null,null,null,{"$f":"Formulier!F16-Formulier!E16","v":0}]
[1,"Facom C11A","Sleutel zeskant moer bovenfusee",2.5,10]
[2,"Facom C11B","Regelsleutel Bovenfusee",2.5,10]
[3,"Facom C14","Onderfusee kogeltrekker",3,75]
[4,"Facom C15","Bovenfusee kogeltrekker",3,30]
[5,"Facom C16","Binnenmoer sleutel",1.5,25]
[6,"Facom C17","Hulpstuk bij C16",1.5,25]
[7,"Facom C18","Binnenmoer sleutel",1.5,25]
[8,"Facom C19","Sleutel opsluitmoer 1e kogellager",1.5,50]
[9,"Facom C22 + C22C + C22V","Complete set voor demontage kruiskoppeling",3,50]
[10,"x","Remleiding gereedschap",1.5,50]
[11,"Facom C27","Sleutel bout dynamo",1.5,13]
[12,"Facom C29A","Sleutel speciale boutjes koppelinghuis motor",1.5,38]
[13,"Facom C29B","Sleutel speciale boutjes kopppelinghuis",1.5,38]
[14,"Facom C39B","Trekker 1e kogellager voorwiel",3,50]
[15,"Facom C46","Sleutel racord hoofdremcilinder",1.5,12.5]
[16,"Facom C47","Trekker 1e kogellager als groef beschadigd is",3,62]
[17,"Facom C48","Regelsleutel olie retourregeling nokkenas",1.5,50]
[18,"Wanoda 118","Sleutel opsluitmoer 1e kogellager",1.5,50]
[19,"Wanoda 118","Regelsleutel bovenfusee",1.5,50]
[20,"Facom SGDG","Trekker wielnaaf tambour",3,105]
[21,"R.K. 160","Trekker 1e kogellager",3,105]
[22,"R.K. 170","Trekker wielnaaf",3,105]
[23,"E.F. 40","Trekker wielnaaf",3,105]
[24,"E.F. 50","Trekker 2e kogellager (9 lagers)",3,62]
[25,"Alloy steel","Polygonale sleutel 26 x 26",1.5,15]
[26,"Alloy steel","Polygonale sleutel 30 x 32",1.5,20]
[27,"Alloy steel","Steeksleutel rond en plat 38 x 38",1.5,18]
[28,"2100 T","Centreergereedschap remmen",3,125]
[29,"1 Ton","Rolkrik 1 ton",3,75]
[30,"TT","Tegenhouder tambour",1.5,20]
[31,"NB","Nokkenasmoer boite",1.5,50]
[32,"CK","Centreeras koppeling",1.5,8]
[33,"x","Giraf +- 50 kg",12.5,125]
[34,"x","Krik 1 ton",3,62]
[35,"x","Tambourtrekker C4",2,38]
[36,"x","Rembrommeltrekker",2.5,105]
[37,"x","Schalendifferentieel-lager",2.5,35]
[38,"x","binnenmoersleutel",1.5,50]
[39,"x","stelsleutel spoorstangkogel",1.5,13]
[40,"x","sleutel waterpomplager",1.5,13]
[41,"x","Sleutel dynamo",1.5,13]
[42,"x","4 wiel weegschalen",25,250]
[43,"x","regelsleutel torsiestaven",1.5,50]
[44,"1870-T","Spoorstangkogel afstelsleutel",1.25,20]
[45,"2120-T","Remsegment centreersleutel",1.25,20]
[46,"1964-T","Stuurkogeltrekker",2.5,30]

{"sheet":"Formulier","index":1,"n_rows":37,"n_cols":8,"rows_kept":37,"cut":false,"hidden":false,"merged":[[0,2,0,6],[36,1,36,5],[35,1,35,5],[17,2,17,5],[2,7,2,10],[2,1,2,2],[1,1,1,2],[5,1,5,2]]}
[null,null,"Belgische Oude Citroën Club"]
[null,"Lidnummer  :"]
[null,"Naam  :",null,null,null,null,null,"Enkel de groene velden invullen"]
[null,null,"Telefoon of mobiel  :"]
[null,null,"email  :"]
[null,"Datum  :"]
[]
[null,"Nr",null,"Omschrijving","Huur","Waarborg"]
[null,null,{"$f":"IF($B9>0,VLOOKUP($B9,Lijst!$A$5:$E$50,2),\"\")","v":""},{"$f":"IF($B9>0,VLOOKUP($B9,Lijst!$A$5:$E$50,3),\"\")","v":""},{"$f":"IF($B9>0,VLOOKUP($B9,Lijst!$A$5:$E$50,4),\"\")","v":""},{"$f":"IF($B9>0,VLOOKUP($B9,Lijst!$A$5:$E$50,5),\"\")","v":""}]
[null,null,{"$f":"IF($B10>0,VLOOKUP($B10,Lijst!$A$5:$E$50,2),\"\")","v":""},{"$f":"IF($B10>0,VLOOKUP($B10,Lijst!$A$5:$E$50,3),\"\")","v":""},{"$f":"IF($B10>0,VLOOKUP($B10,Lijst!$A$5:$E$50,4),\"\")","v":""},{"$f":"IF($B10>0,VLOOKUP($B10,Lijst!$A$5:$E$50,5),\"\")","v":""}]
[null,null,{"$f":"IF($B11>0,VLOOKUP($B11,Lijst!$A$5:$E$50,2),\"\")","v":""},{"$f":"IF($B11>0,VLOOKUP($B11,Lijst!$A$5:$E$50,3),\"\")","v":""},{"$f":"IF($B11>0,VLOOKUP($B11,Lijst!$A$5:$E$50,4),\"\")","v":""},{"$f":"IF($B11>0,VLOOKUP($B11,Lijst!$A$5:$E$50,5),\"\")","v":""}]
[null,null,{"$f":"IF($B12>0,VLOOKUP($B12,Lijst!$A$5:$E$50,2),\"\")","v":""},{"$f":"IF($B12>0,VLOOKUP($B12,Lijst!$A$5:$E$50,3),\"\")","v":""},{"$f":"IF($B12>0,VLOOKUP($B12,Lijst!$A$5:$E$50,4),\"\")","v":""},{"$f":"IF($B12>0,VLOOKUP($B12,Lijst!$A$5:$E$50,5),\"\")","v":""}]
[null,null,{"$f":"IF($B13>0,VLOOKUP($B13,Lijst!$A$5:$E$50,2),\"\")","v":""},{"$f":"IF($B13>0,VLOOKUP($B13,Lijst!$A$5:$E$50,3),\"\")","v":""},{"$f":"IF($B13>0,VLOOKUP($B13,Lijst!$A$5:$E$50,4),\"\")","v":""},{"$f":"IF($B13>0,VLOOKUP($B13,Lijst!$A$5:$E$50,5),\"\")","v":""}]
[null,null,{"$f":"IF($B14>0,VLOOKUP($B14,Lijst!$A$5:$E$50,2),\"\")","v":""},{"$f":"IF($B14>0,VLOOKUP($B14,Lijst!$A$5:$E$50,3),\"\")","v":""},{"$f":"IF($B14>0,VLOOKUP($B14,Lijst!$A$5:$E$50,4),\"\")","v":""},{"$f":"IF($B14>0,VLOOKUP($B14,Lijst!$A$5:$E$50,5),\"\")","v":""}]
[]
[null,null,null,"Totaal",{"$f":"SUM(E9:E15)","v":0},{"$f":"SUM(F9:F15)","v":0}]
[]
[null,"Opm."]
[]
[]
[]
[]
[null,"Na het terugbrengen van de gereedschappen, binnen de afgesproken termijn zal",null,null,{"$f":"Lijst!I4","v":0},"Euro terugbetaald worden"]
[]
[]
[null,"Na het invullen stuur je het formulier terug als bijlage naar tab@bocc-citroen.be "]
[]
[null,"Daarna stort je de totale waarborg op de rekening  BE22 4151 1346 4147 - Bic code KREDBEBB  op naam van \"BOCC vzw\""]
[]
[null,"Je maakt een afspraak met Emiel Opdeweerdt op het nummer   03 312 38 76   om de gereedschappen op te halen."]
[]
[null,"Na het terugbrengen van de gehuurde gereedschappen (proper) zal de de waarborg, verminderd met de"]
[null,"huurprijs worden terugbetaald."]
[]
[]
[null,"BOCC Technisch Advies Bureau   -  De Hoeve 3   -   2930 Westmalle"]
[null,"telefoon 03 312 38 76   -   mail : tab@bocc-citroen.be"]